bitfinex/quotes_BTCUSD_20240811
["timestamp","ask_amount","ask_price","bid_price","bid_amount"]
[1723394270207,3.53747316,60350.0,60349.0,0.002913]
[1723394270617,3.41339773,60350.0,60349.0,0.002913]
[1723394272761,3.35064622,60350.0,60349.0,0.002913]
[1723394272972,3.41350889,60350.0,60349.0,0.002913]
[1723394273375,1.38722857,60348.0,60347.0,0.000913]
[1723394273579,1.86923224,60348.0,60347.0,0.000913]
[1723394273773,1.92656766,60348.0,60347.0,0.000913]
[1723394274521,1.92656766,60348.0,60347.0,0.001913]
[1723394274522,1.83961593,60348.0,60347.0,0.001913]
[1723394274882,1.9885001,60348.0,60347.0,0.001913]
[1723394275096,1.83961593,60348.0,60347.0,0.001913]
[1723394275697,1.85361593,60348.0,60347.0,0.002913]
[1723394276460,1.79075326,60348.0,60347.0,0.002913]
[1723394276749,1.85342582,60348.0,60347.0,0.002913]
[1723394277124,0.84390557,60337.0,60336.0,0.000913]
[1723394277326,2.47160749,60337.0,60336.0,0.000913]
[1723394277526,2.47788515,60337.0,60336.0,0.000913]
[1723394278587,2.70991515,60337.0,60336.0,0.000913]
[1723394279018,2.71091515,60337.0,60336.0,0.000913]
[1723394279242,2.71191515,60337.0,60336.0,0.000913]
[1723394279957,2.59211515,60337.0,60336.0,0.000913]
[1723394281356,3.27490651,60337.0,60336.0,0.000913]
[1723394281560,2.97796006,60337.0,60336.0,0.000913]
[1723394281762,2.79822681,60337.0,60336.0,0.000913]
[1723394281967,2.87164876,60337.0,60336.0,0.000913]
[1723394282202,2.87564876,60337.0,60336.0,0.000913]
[1723394282432,2.79946973,60337.0,60336.0,0.000913]
[1723394282914,2.88494035,60337.0,60336.0,0.001913]
[1723394283128,2.89894035,60337.0,60336.0,0.002913]
[1723394283309,2.89893119,60337.0,60336.0,0.002913]
[1723394283515,2.87193119,60337.0,60336.0,0.000913]
[1723394283676,2.8821874,60337.0,60336.0,0.000913]
[1723394283897,2.8961874,60337.0,60336.0,0.001913]
[1723394284885,2.9101874,60337.0,60336.0,0.002913]
[1723394285089,2.87137605,60337.0,60336.0,0.001913]
[1723394285646,2.87137605,60337.0,60336.0,0.148113]
[1723394285647,2.20227023,60337.0,60336.0,0.148113]
[1723394285854,0.93808323,60337.0,60336.0,0.148113]
[1723394286315,0.93808323,60337.0,60336.0,0.264129]
[1723394286316,0.03627766,60337.0,60336.0,0.264129]
[1723394286515,0.15229266,60337.0,60336.0,0.148113]
[1723394286717,0.02227766,60337.0,60336.0,0.147113]
[1723394286892,0.12429266,60337.0,60336.0,0.146113]
[1723394287546,0.12429266,60337.0,60336.0,0.147113]
[1723394287547,0.13829266,60337.0,60336.0,0.147113]
[1723394288410,0.15229266,60337.0,60336.0,0.148113]
[1723394288618,0.02227766,60337.0,60336.0,0.147113]
[1723394288841,0.00827766,60337.0,60336.0,0.79580749]
[1723394289045,0.589394,60348.0,60345.0,0.081]
[1723394289244,0.589394,60348.0,60347.0,0.081]
[1723394289374,0.589394,60348.0,60347.0,0.1426]
[1723394289585,0.59539497,60348.0,60347.0,0.1426]
[1723394290105,0.60639497,60348.0,60347.0,0.1426]
[1723394290929,0.59539497,60348.0,60347.0,0.1426]
[1723394291350,0.47940097,60348.0,60347.0,0.1426]
[1723394291487,0.59539397,60348.0,60347.0,0.1426]
[1723394291883,0.60639397,60348.0,60347.0,0.1436]
[1723394292083,0.13299397,60348.0,60347.0,0.1436]
[1723394292641,0.12899397,60348.0,60347.0,0.1436]
[1723394292979,0.13699397,60348.0,60347.0,0.1446]
[1723394295825,0.02100097,60348.0,60347.0,0.1446]
[1723394296069,0.13699397,60348.0,60347.0,0.1446]
[1723394296385,0.36898097,60348.0,60347.0,0.1446]
[1723394298351,0.02100097,60348.0,60347.0,0.1446]
[1723394299567,0.13699397,60348.0,60347.0,0.1446]
[1723394302554,0.13782497,60348.0,60347.0,0.1446]
[1723394305304,0.02183197,60348.0,60347.0,0.1446]
[1723394305760,0.13782497,60348.0,60347.0,0.1446]
[1723394308719,0.13082497,60348.0,60347.0,0.1436]
[1723394308926,0.12282497,60348.0,60347.0,0.1426]
[1723394309146,0.12482497,60348.0,60347.0,0.1426]
[1723394309526,0.12382497,60348.0,60347.0,0.1426]
[1723394309726,0.12382497,60348.0,60347.0,0.1456]
[1723394309927,0.00783197,60348.0,60347.0,0.261595]
[1723394310339,0.00683197,60348.0,60347.0,0.261595]
[1723394310545,0.00683197,60348.0,60347.0,0.1476]
[1723394314481,0.59659954,60348.0,60347.0,0.005]
[1723394314906,0.82858654,60348.0,60347.0,0.005]
[1723394315646,0.116007,60341.0,60340.0,0.0632]
[1723394315857,0.116009,60340.0,60339.0,0.0816]
[1723394316617,0.12205145,60340.0,60339.0,0.0816]
[1723394317022,0.12205145,60340.0,60339.0,0.0866]
[1723394317418,0.58608745,60340.0,60339.0,0.0866]
[1723394317896,0.35406945,60340.0,60339.0,0.0866]
[1723394318251,0.35406945,60340.0,60339.0,0.0916]
[1723394318453,0.59588802,60340.0,60339.0,0.01]
[1723394319021,0.59588802,60340.0,60339.0,0.005]
[1723394319224,0.82790602,60340.0,60339.0,0.005]
[1723394319849,0.82790602,60340.0,60337.0,0.0009141]
[1723394319850,0.58986557,60338.0,60337.0,0.0009141]
[1723394320070,0.66966557,60338.0,60337.0,0.0009141]
[1723394320273,0.67569841,60338.0,60337.0,0.0009141]
[1723394321265,1.07653933,60338.0,60337.0,0.0009141]
[1723394321474,1.17723933,60338.0,60337.0,0.0009141]
[1723394321847,2.44142633,60338.0,60337.0,0.0009141]
[1723394322243,2.44742633,60338.0,60337.0,0.0019141]
[1723394323602,2.45737938,60338.0,60337.0,0.0019141]
[1723394324381,2.51907938,60338.0,60337.0,0.0019141]
[1723394325190,2.10311141,60338.0,60337.0,0.0019141]
[1723394325498,0.01703284,60338.0,60337.0,0.1467141]
[1723394325601,0.01703284,60338.0,60337.0,0.2627291]
[1723394326006,0.01703284,60338.0,60337.0,0.2617291]
[1723394326236,0.01103284,60338.0,60337.0,0.4937591]
[1723394326443,0.01203284,60338.0,60337.0,0.4947591]
[1723394326641,0.01203284,60338.0,60337.0,0.2677291]
[1723394326845,0.00603284,60338.0,60337.0,0.2667291]
[1723394327048,0.232822,60348.0,60342.0,0.0766]
[1723394327267,0.115998,60346.0,60344.0,0.0766]
[1723394327703,0.00600988,60345.0,60344.0,0.0766]
[1723394328258,0.115998,60346.0,60344.0,0.0766]
[1723394328465,0.00600994,60345.0,60344.0,0.0766]
[1723394329074,0.115997,60347.0,60344.0,0.0766]
[1723394329290,0.004,60345.0,60344.0,0.0766]
[1723394329757,0.01001024,60345.0,60344.0,0.0766]
[1723394330028,0.01301024,60345.0,60344.0,0.0766]
[1723394330982,0.01001024,60345.0,60344.0,0.0766]
[1723394331380,0.01201024,60345.0,60344.0,0.0766]
[1723394331604,0.01201024,60345.0,60344.0,0.424604]
[1723394331851,0.006,60345.0,60344.0,1.2763263]
[1723394332283,0.002,60345.0,60344.0,1.2763263]
[1723394332879,0.000831,60348.0,60347.0,0.579977]
[1723394333112,0.00684199,60348.0,60347.0,1.02109387]
[1723394334603,0.00784199,60348.0,60347.0,1.03109387]
[1723394335437,0.00884199,60348.0,60347.0,1.04109387]
[1723394335826,0.00884199,60348.0,60347.0,1.04108706]
[1723394336522,0.00884199,60348.0,60347.0,0.80909606]
[1723394337233,0.002831,60348.0,60347.0,0.80909606]
[1723394337611,0.002831,60348.0,60347.0,1.04108706]
[1723394339839,0.002831,60348.0,60347.0,1.29627749]
[1723394340239,0.002831,60348.0,60347.0,1.15868235]
[1723394340383,0.002831,60348.0,60347.0,1.29626945]
[1723394342125,0.002831,60348.0,60347.0,1.29627331]
[1723394345772,0.002831,60348.0,60347.0,1.29627258]
[1723394346330,0.002831,60348.0,60347.0,1.15868235]
[1723394346467,0.002831,60348.0,60347.0,1.29627353]
[1723394346679,0.002831,60348.0,60347.0,1.06428253]
[1723394347076,0.002831,60348.0,60347.0,0.90369135]
[1723394347653,0.002831,60348.0,60347.0,1.29627183]
[1723394347855,0.002831,60348.0,60347.0,1.39627183]
[1723394350811,0.002831,60348.0,60347.0,1.62826283]
[1723394351428,0.002831,60348.0,60347.0,1.6284623]
[1723394352111,0.001831,60348.0,60347.0,1.6184623]
[1723394352314,0.001831,60348.0,60347.0,1.6304623]
[1723394352315,0.002831,60348.0,60347.0,1.6304623]
[1723394352741,0.002831,60348.0,60347.0,1.49287282]
[1723394352955,0.000831,60348.0,60347.0,1.60844697]
[1723394353270,0.000831,60348.0,60347.0,1.62244697]
[1723394353475,0.000831,60348.0,60347.0,1.60844697]
[1723394353849,0.000831,60348.0,60347.0,1.62244697]
[1723394354277,0.00083,60350.0,60349.0,1.04412243]
[1723394354631,0.00083,60350.0,60349.0,1.58309322]
[1723394354805,0.00083,60350.0,60349.0,1.68309322]
[1723394355182,0.00083,60350.0,60349.0,1.85504779]
[1723394356341,0.00083,60350.0,60349.0,1.64869192]
[1723394356549,0.00083,60350.0,60349.0,1.86802759]
[1723394356550,0.00183,60350.0,60349.0,1.86802759]
[1723394356958,0.00183,60350.0,60349.0,1.88102775]
[1723394358402,0.00083,60357.0,60356.0,0.95784843]
[1723394358725,0.00083,60357.0,60356.0,1.24466335]
[1723394359509,0.00083,60357.0,60356.0,1.24966335]
[1723394360555,0.00083,60357.0,60356.0,1.25466335]
[1723394360754,0.00083,60357.0,60356.0,1.46099891]
[1723394361229,0.00083,60357.0,60356.0,1.45599891]
[1723394361634,0.00083,60357.0,60356.0,1.32644164]
[1723394361854,0.00083,60357.0,60356.0,1.33844164]
[1723394362862,0.00083,60357.0,60356.0,1.34831936]
[1723394363740,0.00083,60357.0,60356.0,1.55465565]
[1723394365423,0.00083,60357.0,60356.0,1.48587689]
[1723394366158,0.00083,60357.0,60356.0,0.35739097]
[1723394366336,0.00083,60357.0,60356.0,0.34751325]
[1723394366537,0.00083,60357.0,60356.0,0.57947025]
[1723394366721,0.00690348,60357.0,60356.0,0.57947025]
[1723394367134,0.00690348,60357.0,60356.0,0.34751325]
[1723394367536,0.00690348,60357.0,60356.0,0.57947025]
[1723394368813,0.00690348,60357.0,60356.0,0.57948502]
[1723394369466,0.00690348,60357.0,60356.0,0.34752802]
[1723394370302,0.00690348,60357.0,60356.0,0.57948502]
[1723394372543,0.00690348,60357.0,60356.0,0.57948959]
[1723394373087,0.00690348,60357.0,60356.0,0.57948836]
[1723394373733,0.00690348,60357.0,60356.0,0.51071007]
[1723394374131,0.00690348,60357.0,60356.0,0.27875307]
[1723394374335,0.00690348,60357.0,60356.0,0.51071007]
[1723394374818,0.00690348,60357.0,60356.0,1.41093899]
[1723394374993,0.00690348,60357.0,60356.0,1.4797199]
[1723394375215,0.00083,60357.0,60356.0,1.4797199]
[1723394375703,0.00083,60357.0,60356.0,1.65166358]
[1723394375834,0.00083,60357.0,60356.0,1.73136358]
[1723394376084,0.00083,60357.0,60356.0,1.84073402]
[1723394376300,0.00083,60357.0,60356.0,2.135735]
[1723394376950,0.00083,60357.0,60356.0,2.25909528]
[1723394377156,0.00083,60357.0,60356.0,2.135735]
[1723394377377,0.00083,60357.0,60356.0,2.110735]
[1723394377580,0.00083,60357.0,60356.0,2.24810552]
[1723394377781,0.00083,60357.0,60356.0,2.26210552]
[1723394377957,0.00083,60357.0,60356.0,2.059035]
[1723394378356,0.00083,60357.0,60356.0,2.18240552]
[1723394379589,0.00083,60357.0,60356.0,2.18239445]
[1723394379807,0.00083,60357.0,60356.0,2.41635145]
[1723394379987,0.00083,60357.0,60356.0,2.30098093]
[1723394380213,0.00083,60357.0,60356.0,2.30298093]
[1723394380384,0.00083,60357.0,60356.0,2.30098093]
[1723394380801,0.00083,60357.0,60356.0,2.04502393]
[1723394381008,0.00083,60357.0,60356.0,2.03102393]
[1723394381204,0.00083,60357.0,60356.0,2.04502393]
[1723394381407,0.00083,60357.0,60356.0,2.55607393]
[1723394381604,0.00083,60357.0,60356.0,2.54207393]
[1723394383019,0.00083,60357.0,60356.0,2.5439663]
[1723394383432,0.00083,60357.0,60356.0,2.37200235]
[1723394383635,0.00083,60357.0,60356.0,2.54392181]
[1723394383852,0.00083,60357.0,60356.0,2.55792181]
[1723394384099,0.00083,60357.0,60356.0,2.52992181]
[1723394384264,0.00083,60357.0,60356.0,2.54392181]
[1723394384466,0.00083,60357.0,60356.0,2.55792181]
[1723394384669,0.00083,60357.0,60356.0,2.38360629]
[1723394384944,0.00083,60357.0,60356.0,2.49286995]
[1723394385098,0.00083,60357.0,60356.0,2.50686995]
[1723394385977,0.00083,60357.0,60356.0,2.38360629]
[1723394386397,0.00083,60357.0,60356.0,2.50689191]
[1723394386515,0.00083,60357.0,60356.0,2.06014028]
[1723394386719,0.00083,60357.0,60356.0,2.46823096]
[1723394387141,0.00083,60357.0,60356.0,2.48223096]
[1723394387959,0.00083,60357.0,60356.0,2.38360859]
[1723394388533,0.00083,60357.0,60356.0,2.48224603]
[1723394388709,0.00083,60357.0,60356.0,2.22728903]
[1723394388964,0.00083,60357.0,60356.0,1.85672475]
[1723394389373,0.00083,60357.0,60356.0,1.78795482]
[1723394389521,0.00083,60357.0,60356.0,1.70475482]
[1723394389726,0.00083,60357.0,60356.0,1.63845482]
[1723394390511,0.00083,60357.0,60356.0,1.66145482]
[1723394390699,0.00083,60357.0,60356.0,1.73345482]
[1723394390910,0.00083,60357.0,60356.0,1.74745482]
[1723394391306,0.00083,60357.0,60356.0,1.89173266]
[1723394391506,0.00083,60357.0,60356.0,1.90573266]
[1723394391726,0.00083,60357.0,60356.0,1.95507254]
[1723394393593,0.00083,60357.0,60356.0,1.74875323]
[1723394393841,0.00083,60357.0,60356.0,1.95508715]
[1723394393959,0.00083,60357.0,60356.0,1.95510371]
[1723394394160,0.00083,60357.0,60356.0,1.95510251]
[1723394395387,0.00083,60357.0,60356.0,1.95510502]
[1723394396678,0.00083,60357.0,60356.0,1.90574607]
[1723394396804,0.00083,60357.0,60356.0,1.9797845]
[1723394397382,0.00083,60357.0,60356.0,2.0422845]
[1723394399986,0.00083,60357.0,60356.0,1.9042845]
[1723394400201,0.00083,60357.0,60356.0,1.83024607]
[1723394400627,0.00083,60357.0,60356.0,1.62391335]
[1723394400831,0.00083,60357.0,60356.0,1.83024754]
[1723394401511,0.00083,60357.0,60356.0,1.59829054]
[1723394401725,0.00083,60357.0,60356.0,1.52951248]
[1723394403061,0.08073,60357.0,60356.0,0.94241066]
[1723394403265,0.08073,60357.0,60356.0,0.66261774]
[1723394403479,0.26558097,60357.0,60356.0,0.66261774]
[1723394403678,0.49753397,60357.0,60356.0,0.66261774]
[1723394403899,0.50753397,60357.0,60356.0,0.49705]
[1723394404105,0.73948697,60357.0,60356.0,0.49705]
[1723394404321,0.73948697,60357.0,60356.0,0.51105]
[1723394404521,0.97143997,60357.0,60356.0,0.51105]
[1723394404721,0.97143997,60357.0,60356.0,0.49705]
[1723394404935,0.97143997,60357.0,60356.0,0.50305]
[1723394405360,0.97143997,60357.0,60356.0,0.49705]
[1723394405762,0.97143997,60357.0,60356.0,0.51105]
[1723394406391,0.97143997,60357.0,60356.0,0.49705]
[1723394406546,0.97443997,60357.0,60356.0,0.49805]
[1723394406775,0.99424054,60357.0,60356.0,0.49805]
[1723394406980,0.99124054,60357.0,60356.0,0.49705]
[1723394407314,0.99124054,60357.0,60356.0,0.49905]
[1723394407498,0.99424054,60357.0,60356.0,0.49905]
[1723394407704,0.99424054,60357.0,60356.0,0.49805]
[1723394407913,1.39000846,60357.0,60356.0,0.49905]
[1723394408112,2.75419546,60357.0,60356.0,0.001]
[1723394408549,2.80381675,60357.0,60356.0,0.002]
[1723394408748,2.80081675,60357.0,60356.0,0.001]
[1723394409177,2.75319546,60357.0,60356.0,0.002]
[1723394409383,2.75319546,60357.0,60350.0,0.000913]
[1723394409384,1.07369257,60351.0,60350.0,0.000913]
[1723394409533,1.63640749,60351.0,60350.0,0.000913]
[1723394409730,2.90664732,60351.0,60350.0,0.000913]
[1723394409943,3.13862332,60351.0,60350.0,0.000913]
[1723394410774,1.40330657,60349.0,60348.0,0.000913]
[1723394410980,1.66712149,60349.0,60348.0,0.000913]
[1723394411213,1.67317388,60349.0,60348.0,0.000913]
[1723394412947,2.93736088,60349.0,60348.0,0.000913]
[1723394413149,0.93859157,60338.0,60337.0,0.0009141]
[1723394413349,1.19027094,60338.0,60337.0,0.0009141]
[1723394414532,1.43029694,60338.0,60337.0,0.0019141]
[1723394414777,1.53029694,60338.0,60337.0,0.0019141]
[1723394415355,2.79448394,60338.0,60337.0,0.0019141]
[1723394416020,2.80148394,60338.0,60337.0,0.0029141]
[1723394420446,2.80148394,60338.0,60322.0,0.000913]
[1723394420447,0.84199957,60330.0,60322.0,0.000913]
[1723394420603,2.92149195,60330.0,60322.0,0.000913]
[1723394420809,0.93389057,60323.0,60322.0,0.000913]
[1723394421013,1.52908849,60323.0,60322.0,0.000913]
[1723394421220,1.63509741,60323.0,60322.0,0.000913]
[1723394423128,1.64909741,60323.0,60322.0,0.001913]
[1723394423490,1.64909741,60323.0,60322.0,0.000913]
[1723394423695,1.63509741,60323.0,60322.0,0.000913]
[1723394424121,1.62909741,60323.0,60322.0,0.000913]
[1723394424321,1.42979741,60323.0,60322.0,0.000913]
[1723394424521,1.21171441,60323.0,60322.0,0.000913]
[1723394424745,1.19861441,60323.0,60322.0,0.000913]
[1723394425343,1.18461441,60323.0,60322.0,0.000913]
[1723394425931,1.17061441,60323.0,60322.0,0.000913]
[1723394426165,1.20461441,60323.0,60322.0,0.001913]
[1723394426792,1.18461441,60323.0,60322.0,0.002913]
[1723394426988,1.21861441,60323.0,60322.0,0.001913]
[1723394427225,1.20461441,60323.0,60322.0,0.001913]
[1723394427381,1.20461441,60323.0,60322.0,0.002913]
[1723394427382,1.21761441,60323.0,60322.0,0.002913]
[1723394428429,1.19761441,60323.0,60322.0,0.002913]
[1723394428825,2.46088841,60323.0,60322.0,0.002913]
[1723394429032,2.48088841,60323.0,60322.0,0.002913]
[1723394429378,2.46088841,60323.0,60322.0,0.002913]
[1723394429576,1.87648992,60323.0,60322.0,0.002913]
[1723394429777,1.87648992,60323.0,60322.0,0.080213]
[1723394430215,1.84948992,60323.0,60322.0,0.078213]
[1723394430418,1.87448992,60323.0,60322.0,0.080213]
[1723394430619,1.87448992,60323.0,60322.0,0.079213]
[1723394430822,1.87448992,60323.0,60322.0,0.078213]
[1723394431107,1.87448992,60323.0,60322.0,0.001913]
[1723394431243,1.87448992,60323.0,60322.0,0.000913]
[1723394431244,1.84948992,60323.0,60322.0,0.000913]
[1723394431477,1.85129986,60323.0,60322.0,0.000913]
[1723394431652,1.85629986,60323.0,60322.0,0.000913]
[1723394432695,1.62421686,60323.0,60322.0,0.000913]
[1723394432852,1.86229986,60323.0,60322.0,0.001913]
[1723394434262,1.63021686,60323.0,60322.0,0.001913]
[1723394434475,1.63021686,60323.0,60322.0,0.139513]
[1723394434832,0.36694286,60323.0,60322.0,0.139513]
[1723394435036,0.59902586,60323.0,60322.0,0.139513]
[1723394435253,0.36694286,60323.0,60322.0,0.139513]
[1723394436267,0.10066532,60323.0,60322.0,0.13971243]
[1723394436466,0.10066532,60323.0,60322.0,0.25575543]
[1723394436688,0.10066532,60323.0,60322.0,0.48784243]
[1723394436887,0.10066532,60323.0,60322.0,0.25575543]
[1723394436888,0.09284646,60323.0,60322.0,0.25575543]
[1723394437066,0.10066469,60323.0,60322.0,0.25575543]
[1723394439087,0.09566469,60323.0,60322.0,0.25575543]
[1723394439296,0.08966469,60323.0,60322.0,0.25575543]
[1723394439499,0.08966469,60323.0,60322.0,0.25975543]
[1723394439902,0.08966469,60323.0,60322.0,0.25475543]
[1723394440071,0.08966469,60323.0,60322.0,0.25975543]
[1723394441079,0.08966469,60323.0,60322.0,0.25475543]
[1723394442314,0.08966469,60323.0,60322.0,0.39241554]
[1723394442667,0.08966469,60323.0,60322.0,0.40041555]
[1723394442774,0.08966469,60323.0,60322.0,0.40041553]
[1723394442979,0.08966469,60323.0,60322.0,0.39641498]
[1723394443170,0.08966469,60323.0,60322.0,0.40141498]
[1723394443591,0.08966469,60323.0,60322.0,0.28517255]
[1723394443791,0.20570569,60323.0,60322.0,0.147513]
[1723394444234,0.43778869,60323.0,60322.0,0.147513]
[1723394444608,0.20570569,60323.0,60322.0,0.009913]
[1723394445021,0.43778869,60323.0,60322.0,0.009913]
[1723394453942,0.43778869,60323.0,60322.0,0.005913]
[1723394454193,0.43778869,60323.0,60322.0,0.008913]
[1723394454370,0.08966469,60323.0,60322.0,0.003913]
[1723394454540,0.00781823,60323.0,60322.0,0.28697726]
[1723394454939,0.116038,60325.0,60322.0,0.28697726]
[1723394455208,0.00782597,60324.0,60323.0,0.13766483]
[1723394455381,0.12386597,60324.0,60323.0,0.13766483]
[1723394455789,0.35594597,60324.0,60323.0,0.13766483]
[1723394455988,0.116041,60323.0,60322.0,0.144113]
[1723394456188,0.2057137,60323.0,60322.0,0.2819753]
[1723394456355,0.2057137,60323.0,60322.0,0.2829753]
[1723394456552,0.2057137,60323.0,60322.0,0.2819753]
[1723394456794,0.2057137,60323.0,60322.0,0.28177587]
[1723394457153,0.2057137,60323.0,60322.0,0.2819753]
[1723394457374,0.00782624,60323.0,60322.0,1.33599422]
[1723394457571,0.000831,60329.0,60328.0,0.34829543]
[1723394457774,0.000831,60329.0,60328.0,0.7070583]
[1723394458027,0.348921,60329.0,60328.0,0.13766287]
[1723394458227,0.000831,60329.0,60322.0,0.065813]
[1723394458462,0.19788746,60323.0,60322.0,0.065813]
[1723394458646,0.42997046,60323.0,60322.0,0.20747438]
[1723394458849,0.43780098,60323.0,60322.0,0.20447438]
[1723394459046,0.43780098,60323.0,60322.0,0.20047438]
[1723394460400,0.44080098,60323.0,60322.0,0.20047438]
[1723394460636,0.20571798,60323.0,60322.0,0.20047438]
[1723394460835,0.20571798,60323.0,60322.0,0.2004762]
[1723394461041,0.20771798,60323.0,60322.0,0.2004762]
[1723394461375,0.43780098,60323.0,60322.0,0.2004762]
[1723394461794,0.43880098,60323.0,60322.0,0.2004762]
[1723394461999,0.43980098,60323.0,60322.0,0.2004762]
[1723394462199,0.43880098,60323.0,60322.0,0.2004762]
[1723394462395,0.20671798,60323.0,60322.0,0.2004762]
[1723394462964,0.20571798,60323.0,60322.0,0.2004762]
[1723394463343,0.08967698,60323.0,60322.0,0.2004762]
[1723394463490,0.08967698,60323.0,60322.0,0.39601863]
[1723394463685,0.08967698,60323.0,60322.0,0.62810563]
[1723394464744,0.08967698,60323.0,60322.0,0.2797762]
[1723394465003,0.20571798,60323.0,60322.0,0.2797762]
[1723394465152,0.08967698,60323.0,60322.0,0.2807762]
[1723394465347,0.08967698,60323.0,60322.0,0.2817762]
[1723394465608,0.08967698,60323.0,60322.0,0.2797762]
[1723394466132,0.08967698,60323.0,60322.0,0.2867762]
[1723394466812,0.08967698,60323.0,60322.0,0.2837762]
[1723394466949,0.08967698,60323.0,60322.0,0.28677607]
[1723394467155,0.08967698,60323.0,60322.0,0.14557607]
[1723394467156,1.38856547,60323.0,60322.0,0.14557607]
[1723394467353,1.38856547,60323.0,60322.0,0.007913]
[1723394467354,1.45296547,60323.0,60322.0,0.007913]
[1723394467800,1.56162877,60323.0,60322.0,0.003913]
[1723394467997,1.5718727,60323.0,60322.0,0.007913]
[1723394468204,1.5918727,60323.0,60322.0,0.007913]
[1723394468378,1.71617145,60323.0,60322.0,0.004913]
[1723394468598,1.59187307,60323.0,60322.0,0.000913]
[1723394468815,1.86809505,60323.0,60322.0,0.002913]
[1723394468997,2.10017805,60323.0,60322.0,0.002913]
[1723394469196,1.93695607,60323.0,60322.0,0.001913]
[1723394469411,2.10003835,60323.0,60322.0,0.002913]
[1723394469612,2.08603835,60323.0,60322.0,0.001913]
[1723394469840,1.93695607,60323.0,60322.0,0.001913]
[1723394470045,2.10003835,60323.0,60322.0,0.002913]
[1723394470272,2.08603835,60323.0,60322.0,0.001913]
[1723394470447,3.20023007,60323.0,60322.0,0.001913]
[1723394470705,3.35137977,60323.0,60322.0,0.000913]
[1723394470982,3.36537977,60323.0,60322.0,0.001913]
[1723394471224,1.30632257,60320.0,60319.0,0.000913]
[1723394471434,2.14358958,60320.0,60319.0,0.000913]
[1723394471653,0.95513257,60310.0,60309.0,0.000913]
[1723394471889,2.84648649,60310.0,60309.0,0.000913]
[1723394472088,2.85429715,60310.0,60309.0,0.000913]
[1723394472512,3.26090426,60310.0,60309.0,0.000913]
[1723394472724,3.48232265,60310.0,60309.0,0.000913]
[1723394472946,3.71445565,60310.0,60309.0,0.000913]
[1723394473163,3.72845565,60310.0,60309.0,0.001913]
[1723394473370,3.78353503,60310.0,60309.0,0.000913]
[1723394473577,3.59638533,60310.0,60309.0,0.000913]
[1723394473783,3.21116021,60310.0,60309.0,0.000913]
[1723394473991,3.14177728,60310.0,60309.0,0.000913]
[1723394474228,3.14177728,60310.0,60309.0,0.001913]
[1723394474229,3.06683022,60310.0,60309.0,0.001913]
[1723394474436,3.31296322,60310.0,60309.0,0.002913]
[1723394474814,3.22459079,60310.0,60309.0,0.001913]
[1723394475059,1.39984657,60300.0,60299.0,0.000913]
[1723394475241,1.91292785,60300.0,60299.0,0.000913]
[1723394475439,1.92065922,60300.0,60299.0,0.000913]
[1723394475614,1.87112878,60300.0,60299.0,0.000913]
[1723394476061,3.18393222,60300.0,60299.0,0.000913]
[1723394476223,3.18393222,60300.0,60299.0,0.001913]
[1723394476423,3.36008192,60300.0,60299.0,0.001913]
[1723394476631,3.31055148,60300.0,60299.0,0.001913]
[1723394477391,3.14640178,60300.0,60299.0,0.001913]
[1723394477904,3.15840178,60300.0,60299.0,0.002913]
[1723394479831,2.97114852,60300.0,60299.0,0.002913]
[1723394480038,2.48095778,60300.0,60299.0,0.002913]
[1723394480242,0.85416986,60300.0,60299.0,0.002913]
[1723394480443,0.61219729,60300.0,60299.0,0.065613]
[1723394482402,0.38002529,60300.0,60299.0,0.142313]
[1723394482601,0.03176729,60300.0,60299.0,0.142313]
[1723394482837,0.03176729,60300.0,60299.0,0.49077643]
[1723394483028,0.36802529,60300.0,60299.0,0.14151243]
[1723394483229,0.83236929,60300.0,60299.0,0.001913]
[1723394483456,0.84136929,60300.0,60299.0,0.002913]
[1723394483656,0.82936929,60300.0,60299.0,0.001913]
[1723394485751,0.83536929,60300.0,60299.0,0.002913]
[1723394485963,0.83536929,60300.0,60299.0,0.001913]
[1723394486233,0.82936929,60300.0,60299.0,0.001913]
[1723394486536,1.01198478,60300.0,60299.0,0.002913]
[1723394486716,0.83836929,60300.0,60299.0,0.002913]
[1723394490042,1.01198478,60300.0,60299.0,0.002913]
[1723394490250,1.44385678,60300.0,60299.0,0.002913]
[1723394490452,1.52685678,60300.0,60299.0,0.002913]
[1723394490854,1.54685678,60300.0,60299.0,0.002913]
[1723394491282,2.81012978,60300.0,60299.0,0.002913]
[1723394492186,2.97172978,60300.0,60299.0,0.002913]
[1723394492452,3.20390178,60300.0,60299.0,0.002913]
[1723394493587,2.95172978,60300.0,60299.0,0.002913]
[1723394493757,2.80712978,60300.0,60299.0,0.002913]
[1723394493956,2.27525778,60300.0,60299.0,0.002913]
[1723394494509,2.26545721,60300.0,60299.0,0.002913]
[1723394494924,2.27525778,60300.0,60299.0,0.002913]
[1723394495553,2.26545721,60300.0,60299.0,0.002913]
[1723394495706,2.27525778,60300.0,60299.0,0.002913]
[1723394497295,1.01198478,60300.0,60299.0,0.002913]
[1723394497623,1.01178521,60300.0,60299.0,0.002913]
[1723394498874,1.00198464,60300.0,60299.0,0.002913]
[1723394499860,0.02556772,60300.0,60299.0,0.490877]
[1723394500042,0.02556772,60300.0,60299.0,0.14281243]
[1723394500256,0.018,60300.0,60299.0,0.14281243]
[1723394500568,0.01674878,60300.0,60299.0,0.14181243]
[1723394501171,0.00774878,60300.0,60299.0,0.14081243]
[1723394501388,0.19792846,60302.0,60299.0,0.14081243]
[1723394501389,0.19792846,60302.0,60299.0,0.14181243]
[1723394501590,0.0077488,60301.0,60299.0,0.14281243]
[1723394501796,0.0077488,60301.0,60299.0,0.142613]
[1723394502026,0.116086,60300.0,60299.0,0.142613]
[1723394502238,0.12383492,60300.0,60299.0,0.142613]
[1723394502510,0.12383492,60300.0,60299.0,0.141613]
[1723394502709,0.12383492,60300.0,60299.0,0.140613]
[1723394503281,0.12383492,60300.0,60299.0,0.141613]
[1723394503510,0.00774892,60300.0,60299.0,0.141613]
[1723394503711,0.00774892,60300.0,60299.0,0.14181243]
[1723394503917,0.00774892,60300.0,60299.0,0.25890043]
[1723394504227,0.08267746,60309.0,60305.0,0.1397]
[1723394504430,0.116073,60307.0,60305.0,0.1397]
[1723394504765,0.116074,60306.0,60305.0,0.1397]
[1723394505166,0.348223,60306.0,60305.0,0.1397]
[1723394505401,0.348223,60306.0,60305.0,0.14089943]
[1723394505570,0.348223,60306.0,60305.0,0.13989943]
[1723394505978,0.354223,60306.0,60305.0,0.14089943]